bitfinex/quotes_BTCUSD_20240723
["timestamp","ask_amount","ask_price","bid_price","bid_amount"]
[1721761612331,0.00284,66049.0,66048.0,2.36970634]
[1721761612539,0.00284,66049.0,66048.0,2.42274807]
[1721761612895,0.00284,66049.0,66048.0,2.55946804]
[1721761613109,0.00284,66049.0,66048.0,2.57346804]
[1721761613465,0.00284,66049.0,66048.0,2.62651037]
[1721761614044,0.00284,66049.0,66048.0,2.70196804]
[1721761614181,0.00284,66049.0,66048.0,2.46629862]
[1721761614383,0.00854,66050.0,66049.0,1.512622]
[1721761614585,0.00854,66050.0,66049.0,2.49334293]
[1721761614791,0.00854,66050.0,66049.0,3.39554393]
[1721761615007,0.00854,66050.0,66049.0,3.86539401]
[1721761615008,0.00731307,66050.0,66049.0,3.86539401]
[1721761615397,0.00853,66078.0,66077.0,0.151338]
[1721761615602,0.00853,66078.0,66077.0,2.24453501]
[1721761615812,0.00853,66078.0,66077.0,2.41777739]
[1721761616017,0.00853,66078.0,66077.0,2.7420319]
[1721761616208,0.00853,66078.0,66077.0,3.55936213]
[1721761616460,0.00853,66078.0,66077.0,3.58436213]
[1721761616667,0.00853,66078.0,66077.0,3.58536213]
[1721761616859,0.00853,66078.0,66077.0,3.58436213]
[1721761617100,0.00848,66078.0,66077.0,3.58436213]
[1721761617229,0.00848,66078.0,66077.0,2.7788636]
[1721761617426,0.00853,66079.0,66078.0,1.65545781]
[1721761617629,0.00853,66079.0,66078.0,3.15863023]
[1721761617833,0.00853,66079.0,66078.0,3.15383623]
[1721761618034,0.00853,66079.0,66078.0,3.45383623]
[1721761618242,0.00853,66079.0,66078.0,3.00349242]
[1721761618465,0.00853,66079.0,66078.0,2.70361442]
[1721761618667,0.00853,66079.0,66078.0,2.83592553]
[1721761618874,0.00853,66079.0,66078.0,2.23117274]
[1721761619028,0.00853,66079.0,66078.0,2.23396674]
[1721761619235,0.00853,66079.0,66078.0,2.24796674]
[1721761619460,0.00853,66079.0,66078.0,2.26196674]
[1721761619655,0.00853,66079.0,66078.0,2.11564092]
[1721761619935,0.00853,66079.0,66078.0,1.81296892]
[1721761620141,0.00853,66079.0,66078.0,1.84096892]
[1721761620352,0.00853,66079.0,66078.0,0.6156139]
[1721761620547,0.00853,66079.0,66078.0,0.61567808]
[1721761620752,0.00853,66079.0,66078.0,0.57914176]
[1721761621131,0.00853,66079.0,66078.0,0.64328404]
[1721761621361,0.00853,66079.0,66078.0,0.73047776]
[1721761621566,0.00853,66079.0,66078.0,1.08375702]
[1721761621768,0.00853,66079.0,66078.0,0.78108502]
[1721761621970,0.00853,66079.0,66078.0,0.75308502]
[1721761622124,0.00853,66079.0,66078.0,1.14571501]
[1721761622314,0.00853,66079.0,66078.0,1.30673492]
[1721761622758,0.00853,66079.0,66078.0,1.21677693]
[1721761622970,0.00853,66079.0,66078.0,1.51944893]
[1721761623197,0.0827,66087.0,66082.0,0.151327]
[1721761623379,0.0827,66087.0,66082.0,0.38713819]
[1721761623581,0.0827,66087.0,66082.0,0.110166]
[1721761623810,0.0827,66087.0,66082.0,0.23861074]
[1721761623939,0.01593385,66083.0,66082.0,0.23861074]
[1721761624145,0.00853,66083.0,66082.0,0.23581674]
[1721761624369,0.00853,66083.0,66082.0,0.264287]
[1721761624570,0.00853,66083.0,66082.0,1.14249084]
[1721761624783,0.0619,66100.0,66087.0,0.151314]
[1721761625017,0.311114,66098.0,66088.0,0.32007899]
[1721761625193,0.311113,66098.0,66089.0,0.12564368]
[1721761625535,0.311113,66098.0,66090.0,0.15143768]
[1721761625536,0.229096,66096.0,66090.0,0.15143768]
[1721761625748,0.229096,66096.0,66091.0,0.12564368]
[1721761625749,0.0778,66096.0,66091.0,0.12564368]
[1721761625951,0.0778,66096.0,66090.0,0.025794]
[1721761625952,0.0778,66096.0,66092.0,0.21820147]
[1721761626154,0.151298,66095.0,66093.0,0.023]
[1721761626332,0.0778,66096.0,66093.0,0.023]
[1721761626904,0.0778,66096.0,66093.0,0.025794]
[1721761627092,0.0778,66096.0,66094.0,0.03908857]
[1721761627296,0.0778,66096.0,66095.0,0.023]
[1721761627596,0.531685,66096.0,66095.0,0.023]
[1721761627798,0.0778,66096.0,66090.0,0.002794]
[1721761628029,0.151301,66094.0,66091.0,0.12564079]
[1721761628185,0.0778,66096.0,66092.0,0.025794]
[1721761628390,0.0778,66096.0,66092.0,0.002794]
[1721761628592,0.0778,66096.0,66092.0,0.154097]
[1721761628800,0.0778,66096.0,66093.0,0.023]
[1721761629099,0.00853,66098.0,66093.0,0.091094]
[1721761629485,0.00853,66098.0,66094.0,0.12564045]
[1721761629602,0.00853,66098.0,66095.0,0.023]
[1721761629800,0.00853,66098.0,66093.0,0.0732717]
[1721761629801,0.159821,66098.0,66093.0,0.0732717]
[1721761630037,0.159821,66098.0,66093.0,0.025794]
[1721761630038,0.302586,66097.0,66093.0,0.025794]
[1721761630239,0.151295,66096.0,66089.0,0.15131]
[1721761630446,0.0802,66097.0,66088.0,0.3733208]
[1721761630447,0.0802,66097.0,66090.0,0.04956093]
[1721761630671,0.151299,66094.0,66093.0,0.001]
[1721761630995,0.756497,66094.0,66093.0,0.001]
[1721761631194,0.151297,66095.0,66093.0,0.001]
[1721761631411,0.0658,66096.0,66094.0,0.002794]
[1721761631412,0.217095,66096.0,66094.0,0.002794]
[1721761631666,0.151297,66095.0,66093.0,0.001]
[1721761631865,0.453891,66095.0,66094.0,0.002794]
[1721761632109,0.453891,66095.0,66094.0,0.023]
[1721761632303,0.151297,66095.0,66094.0,0.023]
[1721761632531,0.217095,66096.0,66089.0,0.002794]
[1721761632722,0.217095,66096.0,66093.0,0.002]
[1721761632923,0.0658,66096.0,66094.0,0.002794]
[1721761633140,0.0658,66096.0,66094.0,0.023]
[1721761633274,0.0802,66097.0,66095.0,0.05321778]
[1721761633475,0.0802,66097.0,66096.0,0.023]
[1721761634708,0.0802,66097.0,66092.0,0.025794]
[1721761634916,0.15129,66099.0,66093.0,0.12564317]
[1721761635155,0.15129,66099.0,66094.0,0.21331871]
[1721761635354,0.0658,66101.0,66094.0,0.21331871]
[1721761635355,0.00741513,66098.0,66096.0,0.002794]
[1721761635607,0.217083,66101.0,66097.0,0.12564317]
[1721761635608,0.0658,66101.0,66097.0,0.12564317]
[1721761635781,0.0658,66101.0,66098.0,0.15143717]
[1721761636012,0.0658,66101.0,66099.0,0.12564317]
[1721761636218,0.0658,66101.0,66096.0,0.029794]
[1721761636219,0.151291,66098.0,66096.0,0.027]
[1721761636420,0.151291,66098.0,66097.0,0.12843394]
[1721761636599,0.151291,66098.0,66097.0,0.14863994]
[1721761637212,0.453872,66098.0,66097.0,0.12564062]
[1721761637643,0.756453,66098.0,66097.0,0.12564062]
[1721761637864,0.756453,66098.0,66097.0,0.12764062]
[1721761638065,0.0775,66098.0,66097.0,0.12764062]
[1721761638272,0.0775,66098.0,66097.0,0.19659743]
[1721761638458,0.0775,66098.0,66097.0,0.48712727]
[1721761638667,0.0775,66098.0,66097.0,0.21911994]
[1721761638983,0.0775,66098.0,66097.0,0.48512754]
[1721761639275,0.0775,66098.0,66097.0,0.59803595]
[1721761639476,0.0775,66098.0,66097.0,0.57511715]
[1721761639695,0.0775,66098.0,66097.0,0.48512493]
[1721761639895,0.0775,66098.0,66097.0,0.48612493]
[1721761640350,0.07833,66098.0,66097.0,0.48613226]
[1721761640558,0.07833,66098.0,66097.0,0.48413226]
[1721761640685,0.07833,66098.0,66097.0,0.57413697]
[1721761641484,0.0857514,66098.0,66097.0,0.57413697]
[1721761641701,0.0857514,66098.0,66097.0,0.57513697]
[1721761641858,0.2370414,66098.0,66097.0,0.57513697]
[1721761642055,0.2370414,66098.0,66097.0,0.48513226]
[1721761642260,0.2370414,66098.0,66097.0,0.49169226]
[1721761642469,0.2370414,66098.0,66097.0,0.49269226]
[1721761642675,0.5396224,66098.0,66097.0,0.49269226]
[1721761642874,0.5396224,66098.0,66097.0,0.56020472]
[1721761643082,0.2370414,66098.0,66097.0,0.58169697]
[1721761643254,0.5396224,66098.0,66097.0,0.49169226]
[1721761643457,0.0857514,66098.0,66097.0,0.49169419]
[1721761643666,0.0857514,66098.0,66097.0,0.49169283]
[1721761644072,0.0857514,66098.0,66097.0,0.15619978]
[1721761644073,0.0082514,66098.0,66097.0,0.15619978]
[1721761644359,0.0082514,66098.0,66097.0,0.77016082]
[1721761644568,0.0819,66103.0,66097.0,0.77016082]
[1721761644780,0.233179,66103.0,66102.0,0.04501589]
[1721761644963,0.0819,66103.0,66102.0,0.12563978]
[1721761645161,0.453837,66103.0,66102.0,0.39010138]
[1721761645372,0.151279,66103.0,66102.0,0.14863978]
[1721761645594,0.151279,66103.0,66102.0,0.39010158]
[1721761645797,0.453831,66104.0,66102.0,0.39010158]
[1721761645996,0.45383,66104.0,66103.0,0.15143378]
[1721761646206,0.151276,66104.0,66103.0,0.14863978]
[1721761646575,0.151276,66104.0,66103.0,0.14863201]
[1721761647956,0.151276,66104.0,66103.0,0.14963201]
[1721761648158,0.1423,66105.0,66103.0,0.14963201]
[1721761648366,0.293574,66105.0,66104.0,0.12563201]
[1721761648568,0.293574,66105.0,66104.0,0.14863201]
[1721761649128,0.596122,66105.0,66104.0,0.14863201]
[1721761649332,0.293574,66105.0,66104.0,0.14863201]
[1721761649539,0.596122,66105.0,66104.0,0.14863201]
[1721761649984,0.596122,66105.0,66104.0,0.14863286]
[1721761650406,0.60356106,66105.0,66104.0,0.14863286]
[1721761651028,1.48356106,66105.0,66104.0,0.14863286]
[1721761651229,1.48356106,66105.0,66104.0,0.14963286]
[1721761652177,1.18101306,66105.0,66104.0,0.14963286]
[1721761652395,1.12101306,66105.0,66104.0,0.14963286]
[1721761652693,0.96973906,66105.0,66104.0,0.14963286]
[1721761652892,1.12101306,66105.0,66104.0,0.14963286]
[1721761653115,1.34576106,66105.0,66104.0,0.14963286]
[1721761653295,0.89193906,66105.0,66104.0,0.14963282]
[1721761653702,1.04321306,66105.0,66104.0,0.14963282]
[1721761654068,0.89193906,66105.0,66104.0,0.14963282]
[1721761654492,1.04321306,66105.0,66104.0,0.14963282]
[1721761656048,1.34576106,66105.0,66104.0,0.14963282]
[1721761656259,1.04321306,66105.0,66104.0,0.14963282]
[1721761656406,0.89193906,66105.0,66104.0,0.024]
[1721761656608,0.07193906,66105.0,66104.0,0.14963242]
[1721761657800,0.07193906,66105.0,66104.0,0.30090842]
[1721761657801,0.00743906,66105.0,66104.0,0.30090842]
[1721761658009,0.085,66109.0,66104.0,0.95910319]
[1721761658010,0.002,66109.0,66104.0,0.95910319]
[1721761658239,0.002,66109.0,66108.0,0.06787233]
[1721761658437,0.002,66109.0,66108.0,0.46110256]
[1721761658647,0.002,66109.0,66108.0,1.08492447]
[1721761658845,0.0149974,66110.0,66109.0,0.534795]
[1721761659017,0.0149974,66110.0,66109.0,2.64150387]
[1721761659217,0.0149974,66110.0,66109.0,2.68720121]
[1721761659425,0.00853,66111.0,66110.0,1.058841]
[1721761659627,0.00853,66111.0,66110.0,2.39620556]
[1721761659826,0.00853,66111.0,66110.0,2.39341156]
[1721761660038,0.00853,66111.0,66110.0,2.54037421]
[1721761660244,0.00853,66111.0,66110.0,2.68697421]
[1721761660452,0.00853,66116.0,66115.0,0.902857]
[1721761660649,0.00853,66116.0,66115.0,2.19173022]
[1721761660859,0.00853,66116.0,66115.0,2.53243567]
[1721761661341,0.00853,66116.0,66115.0,2.78243567]
[1721761661647,0.00853,66116.0,66115.0,2.47993267]
[1721761661778,0.00853,66116.0,66115.0,2.42993267]
[1721761661980,0.00853,66116.0,66115.0,1.48767567]
[1721761662228,0.00853,66116.0,66115.0,1.12806739]
[1721761662444,0.159779,66116.0,66115.0,0.48895593]
[1721761662767,0.462277,66116.0,66115.0,0.47495593]
[1721761662969,0.462277,66116.0,66115.0,0.15359061]
[1721761662970,0.159779,66116.0,66115.0,0.15359061]
[1721761663104,0.00853,66116.0,66115.0,0.22147891]
[1721761663305,0.00853,66116.0,66115.0,0.26399294]
[1721761663509,0.00853,66116.0,66115.0,0.22147891]
[1721761663752,0.00853,66116.0,66115.0,0.19884425]
[1721761663753,0.462277,66116.0,66115.0,0.19884425]
[1721761663954,0.764775,66116.0,66115.0,0.17084425]
[1721761664155,0.764775,66116.0,66115.0,0.13959061]
[1721761664156,1.130873,66116.0,66115.0,0.13959061]
[1721761664359,1.130873,66116.0,66115.0,0.13961096]
[1721761664559,1.130873,66116.0,66115.0,0.014]
[1721761664798,0.374628,66116.0,66111.0,0.04525364]
[1721761664979,0.374628,66116.0,66112.0,0.125613]
[1721761665179,0.151253,66114.0,66113.0,0.12561303]
[1721761665417,0.453789,66110.0,66109.0,0.04525319]
[1721761665618,0.756315,66110.0,66109.0,0.17086814]
[1721761665839,0.453789,66110.0,66109.0,0.19386814]
[1721761666043,0.46139381,66110.0,66109.0,0.1938665]
[1721761666243,0.46139381,66110.0,66109.0,0.14861475]
[1721761666644,0.76391981,66110.0,66109.0,0.14861475]
[1721761667428,0.46139381,66110.0,66109.0,0.14861475]
[1721761668013,0.76391981,66110.0,66109.0,0.14861475]
[1721761668192,0.46139381,66110.0,66109.0,0.14861475]
[1721761668593,0.76391981,66110.0,66109.0,0.14861475]
[1721761668993,0.76391981,66110.0,66109.0,0.14861507]
[1721761669212,0.31013081,66110.0,66109.0,0.023]
[1721761669410,0.46139381,66110.0,66109.0,0.14861515]
[1721761670256,0.76391981,66110.0,66109.0,0.14861515]
[1721761671144,0.76391981,66110.0,66109.0,0.023]
[1721761671787,0.76391981,66110.0,66109.0,0.1486154]
[1721761672170,0.76474981,66110.0,66109.0,0.1486154]
[1721761672570,0.76474981,66110.0,66109.0,0.14861521]
[1721761675881,0.76474981,66110.0,66109.0,0.023]
[1721761676024,0.46222381,66110.0,66109.0,0.14861521]
[1721761676412,0.46217381,66110.0,66109.0,0.14861521]
[1721761676827,0.76469981,66110.0,66109.0,0.14861521]
[1721761677917,0.46217381,66110.0,66109.0,0.14861521]
[1721761679400,0.15964781,66110.0,66109.0,0.14861521]
[1721761680251,0.00838481,66110.0,66109.0,0.14861521]
[1721761680454,0.00838481,66110.0,66109.0,0.16347673]
[1721761680603,0.00838481,66110.0,66109.0,0.14861521]
[1721761680807,0.00083,66110.0,66109.0,0.14861521]
[1721761681012,0.152093,66110.0,66109.0,0.14861521]
[1721761681345,0.15967256,66110.0,66109.0,0.14861521]
[1721761681716,0.15967256,66110.0,66109.0,0.14961521]
[1721761681898,0.15967256,66110.0,66109.0,0.14861521]
[1721761682104,0.00840956,66110.0,66109.0,0.14861521]
[1721761682333,0.15967256,66110.0,66109.0,0.14861521]
[1721761682928,0.00840956,66110.0,66109.0,0.14861521]
[1721761683269,0.15967256,66110.0,66109.0,0.14861521]
[1721761683387,0.46219856,66110.0,66109.0,0.14861521]
[1721761683586,0.00840956,66110.0,66109.0,0.14861969]
[1721761683785,0.00840956,66110.0,66109.0,0.023]
[1721761684033,0.00840956,66110.0,66109.0,0.12561949]
[1721761684245,0.00840956,66110.0,66109.0,0.16376084]
[1721761684824,0.00083,66110.0,66109.0,0.14861949]
[1721761685287,0.00840956,66110.0,66109.0,0.14861949]
[1721761685644,0.00840956,66110.0,66109.0,0.14861482]
[1721761685840,0.00840956,66110.0,66109.0,0.14961482]
[1721761686073,0.00840956,66110.0,66109.0,0.14861482]
[1721761686820,0.00083,66110.0,66109.0,0.14861482]
[1721761687028,0.00840956,66110.0,66109.0,0.14861482]
[1721761688023,0.00840956,66110.0,66109.0,0.14961482]
[1721761688694,0.00083,66110.0,66109.0,0.14961482]
[1721761688893,0.00840956,66110.0,66109.0,0.14961422]
[1721761689217,0.26064379,66110.0,66109.0,0.14861422]
[1721761691621,0.26064379,66110.0,66109.0,0.14961422]
[1721761692300,0.26064379,66110.0,66109.0,0.14861676]
[1721761693898,0.26064379,66110.0,66109.0,0.14961676]
[1721761694791,1.6105047,66110.0,66109.0,0.12661676]
[1721761694991,1.65292514,66110.0,66109.0,0.12661676]
[1721761695197,1.66053034,66110.0,66109.0,0.12661676]
[1721761695406,1.61053034,66110.0,66109.0,0.001]
[1721761695639,1.61053034,66110.0,66109.0,0.12562939]
[1721761696069,1.30800434,66110.0,66109.0,0.12562939]
[1721761696687,1.30800434,66110.0,66109.0,0.12662939]
[1721761696889,0.41193243,66110.0,66109.0,0.14962939]
[1721761697134,0.71445843,66110.0,66109.0,0.14962939]
[1721761697326,0.41193243,66110.0,66109.0,0.14962939]
[1721761697635,0.26066943,66110.0,66109.0,0.14962939]
[1721761697859,0.41193243,66110.0,66109.0,0.14962939]
[1721761698647,0.26066943,66110.0,66109.0,0.14962245]
[1721761698869,0.41193243,66110.0,66109.0,0.14962245]
[1721761699283,0.26066943,66110.0,66109.0,0.14962245]
[1721761700244,0.26066943,66110.0,66109.0,0.67991745]
[1721761700422,0.26066943,66110.0,66109.0,0.98244745]
[1721761700627,0.25306423,66110.0,66109.0,0.67991745]
[1721761701029,0.25306423,66110.0,66109.0,0.98244745]
[1721761701030,0.260665,66110.0,66109.0,0.98244745]
[1721761701228,0.260665,66110.0,66109.0,0.46653924]
[1721761701229,0.25306423,66110.0,66109.0,0.46653924]
[1721761701454,0.76705323,66110.0,66109.0,0.15062245]
[1721761701635,0.774654,66110.0,66109.0,0.14962245]
[1721761701834,0.774654,66110.0,66109.0,0.1536184]
[1721761702081,0.774654,66110.0,66109.0,0.1526184]
[1721761702082,1.07718,66110.0,66109.0,0.1526184]
[1721761702414,1.07718,66110.0,66109.0,0.1486184]
[1721761702543,1.07718,66110.0,66109.0,0.1506184]
[1721761702750,1.07718,66110.0,66109.0,0.023]
[1721761703156,1.07718,66110.0,66109.0,0.024]
[1721761703567,1.90028856,66110.0,66109.0,0.001913]
[1721761704368,1.75332591,66110.0,66109.0,0.001913]
[1721761705847,2.83585191,66110.0,66109.0,0.001913]
[1721761706048,2.94485801,66110.0,66109.0,0.001913]
[1721761706481,2.94485801,66110.0,66103.0,0.000913]
[1721761706482,0.15,66104.0,66103.0,0.000913]
[1721761706691,0.43809,66098.0,66097.0,0.00756]
[1721761706920,0.43809,66098.0,66071.0,0.12182123]
[1721761706921,0.454002,66079.0,66071.0,0.12182123]
[1721761707119,0.672602,66079.0,66078.0,0.12658923]
[1721761707319,0.680138,66079.0,66078.0,0.12658923]
[1721761707520,0.369934,66079.0,66078.0,0.000913]
[1721761707943,0.2186,66079.0,66078.0,0.000913]
[1721761708158,0.2186,66085.0,66078.0,0.000913]
[1721761708364,0.302618,66090.0,66079.0,0.002794]
[1721761708574,0.1,66089.0,66079.0,0.002794]
[1721761708774,0.302633,66087.0,66079.0,0.002794]
[1721761708995,0.151317,66087.0,66079.0,0.002794]
[1721761709206,0.151318,66086.0,66079.0,0.002794]
[1721761709423,0.005,66085.0,66079.0,0.025794]
[1721761709630,0.005,66085.0,66079.0,0.024]
[1721761709850,0.151323,66084.0,66080.0,0.002794]
[1721761710067,0.151323,66084.0,66080.0,0.025794]
[1721761710266,0.302636,66086.0,66080.0,0.023]
[1721761710467,0.15132,66085.0,66079.0,0.001]
[1721761710913,0.30264,66085.0,66079.0,0.001]
[1721761711127,0.151331,66080.0,66079.0,0.001]
[1721761711346,0.302651,66083.0,66078.0,0.000913]
[1721761711347,0.151334,66079.0,66078.0,0.000913]
[1721761712018,0.454002,66079.0,66078.0,0.000913]
[1721761712222,0.75667,66079.0,66078.0,0.000913]
[1721761713353,0.454002,66079.0,66078.0,0.000913]
[1721761713602,0.672602,66079.0,66078.0,0.000913]
[1721761713804,0.369934,66079.0,66078.0,0.006913]
[1721761713972,0.2186,66079.0,66078.0,0.006913]
[1721761714407,0.14701991,66083.0,66078.0,0.006913]
[1721761714625,0.151331,66080.0,66079.0,0.023]
[1721761714959,0.756657,66080.0,66079.0,0.023]
[1721761715178,0.454002,66079.0,66078.0,0.006913]
[1721761715390,1.55562441,66079.0,66078.0,0.005913]
[1721761715586,1.26315641,66079.0,66078.0,0.005913]
[1721761715794,1.18248991,66079.0,66078.0,0.000913]
[1721761716454,1.18248991,66079.0,66078.0,0.001913]
[1721761716906,1.18248991,66079.0,66078.0,0.006913]
[1721761717266,0.96388991,66079.0,66078.0,0.006913]
[1721761717467,1.11085256,66079.0,66078.0,0.006913]
[1721761717685,1.32945256,66079.0,66078.0,0.006913]
[1721761718486,1.23248991,66079.0,66078.0,0.006913]
[1721761719408,1.33243991,66079.0,66078.0,0.006913]
[1721761719610,1.63510791,66079.0,66078.0,0.006913]
[1721761719815,1.41650791,66079.0,66078.0,0.006913]
[1721761720031,1.63510791,66079.0,66078.0,0.006913]
[1721761720235,1.78207056,66079.0,66078.0,0.000913]
[1721761720438,1.23943991,66079.0,66078.0,0.000913]
[1721761720642,1.33943991,66079.0,66078.0,0.000913]
[1721761720820,1.64210791,66079.0,66078.0,0.000913]
[1721761721023,1.42350791,66079.0,66078.0,0.000913]
[1721761721171,2.69477591,66079.0,66078.0,0.000913]
[1721761721372,2.69477591,66079.0,66055.0,0.06770163]
[1721761721373,0.0645,66068.0,66058.0,0.146]
[1721761721573,0.15135,66072.0,66061.0,0.151374]
[1721761721850,0.5188,66075.0,66061.0,0.151374]
[1721761721851,0.4688,66075.0,66063.0,0.151369]
[1721761722048,0.4688,66075.0,66070.0,0.151352]
[1721761722242,0.4688,66075.0,66071.0,0.0816]
[1721761722464,0.160334,66079.0,66078.0,0.001]
[1721761722680,0.007,66079.0,66078.0,0.001]
[1721761722825,0.151323,66084.0,66074.0,0.174345]
[1721761723025,0.25223423,66085.0,66077.0,0.151337]
[1721761723225,0.25223423,66085.0,66078.0,0.023]
[1721761723645,0.25223423,66085.0,66079.0,0.002794]
[1721761723861,0.151324,66084.0,66079.0,0.023]
[1721761724083,0.007,66084.0,66076.0,0.17434]
[1721761724289,0.007,66084.0,66077.0,0.003794]
[1721761724487,0.151329,66082.0,66078.0,0.023]
[1721761724727,0.007,66084.0,66078.0,0.023]
[1721761724728,0.007,66084.0,66078.0,0.1425]
[1721761724845,0.007,66084.0,66079.0,0.023]
[1721761725052,0.007,66084.0,66080.0,0.002794]
[1721761725260,0.25223423,66085.0,66079.0,0.174333]
[1721761725454,0.25223423,66085.0,66080.0,0.002794]
[1721761725659,0.26423423,66085.0,66080.0,0.154125]
[1721761726042,0.26423423,66085.0,66082.0,0.002794]
[1721761726159,0.25223423,66085.0,66082.0,0.002794]
[1721761726356,0.25223423,66085.0,66081.0,0.002794]
[1721761726357,0.26223423,66085.0,66081.0,0.002794]
[1721761726612,0.26623423,66085.0,66081.0,0.002794]
[1721761726824,0.25223423,66085.0,66081.0,0.002794]
[1721761727029,0.25223423,66085.0,66080.0,0.023]
[1721761727226,0.25223423,66085.0,66080.0,0.001]
[1721761727227,0.151326,66083.0,66080.0,0.001]
[1721761727530,0.151327,66082.0,66080.0,0.001]
[1721761727673,0.151329,66081.0,66080.0,0.001]
[1721761727871,0.453987,66081.0,66080.0,0.001]
[1721761728289,0.151334,66079.0,66074.0,0.0612]
[1721761728510,0.151334,66079.0,66075.0,0.12567439]
[1721761728806,0.151331,66080.0,66076.0,0.12567439]
[1721761729033,0.151331,66080.0,66077.0,0.023]
[1721761729374,0.306658,66081.0,66075.0,0.023]
[1721761729577,0.151332,66080.0,66076.0,0.12567439]
[1721761729793,0.151332,66080.0,66075.0,0.023]
[1721761729794,0.151336,66078.0,66077.0,0.14867439]
[1721761730069,0.151336,66078.0,66077.0,0.12567439]
[1721761730294,0.151336,66078.0,66077.0,0.14867439]
[1721761730850,0.454008,66078.0,66077.0,0.14867439]
[1721761731277,0.454008,66078.0,66077.0,0.023]
[1721761731622,0.454008,66078.0,66077.0,0.002]
[1721761731742,0.456008,66078.0,66077.0,0.002]
[1721761732826,0.454008,66078.0,66077.0,0.002]
[1721761733228,0.461008,66078.0,66077.0,0.003]
[1721761733433,0.461008,66078.0,66077.0,0.024]
[1721761733626,0.461008,66078.0,66077.0,0.14968314]
[1721761733869,0.465008,66078.0,66077.0,0.14968314]
[1721761734238,0.465008,66078.0,66077.0,0.14968281]
[1721761734440,0.458008,66078.0,66077.0,0.14868281]
[1721761734641,0.454008,66078.0,66077.0,0.14868281]
[1721761734849,0.460008,66078.0,66077.0,0.14968281]
[1721761735186,0.463008,66078.0,66077.0,0.14968281]
[1721761736559,0.009,66078.0,66077.0,0.15059581]
[1721761737003,0.009,66078.0,66077.0,0.23229581]
[1721761737141,0.009,66078.0,66077.0,0.29499581]
[1721761737339,0.009,66078.0,66077.0,0.169313]
[1721761737542,0.009,66078.0,66077.0,0.29498723]
[1721761739339,0.463008,66078.0,66077.0,0.15058723]
[1721761740620,0.76568,66078.0,66077.0,0.15058723]
[1721761740763,0.463008,66078.0,66077.0,0.15059274]
[1721761742428,0.76568,66078.0,66077.0,0.15059274]
[1721761743185,0.61002791,66078.0,66077.0,0.12759274]
[1721761743384,0.91269991,66078.0,66077.0,0.15059274]
[1721761743937,1.32826256,66078.0,66077.0,0.15059274]
[1721761744112,1.13129991,66078.0,66077.0,0.12759787]
[1721761744317,1.13129991,66078.0,66077.0,0.12759944]
[1721761744517,1.43397191,66078.0,66077.0,0.001913]
[1721761744691,1.44153191,66078.0,66077.0,0.001913]
[1721761745294,1.49153191,66078.0,66077.0,0.001913]
[1721761745854,1.58849456,66078.0,66077.0,0.001913]
[1721761746054,1.28582256,66078.0,66077.0,0.001913]
[1721761746234,1.13885991,66078.0,66077.0,0.001913]
[1721761746411,1.44153191,66078.0,66077.0,0.001913]
[1721761746613,1.49153191,66078.0,66077.0,0.001913]
[1721761746817,1.59153191,66078.0,66077.0,0.001913]
[1721761747020,1.73849456,66078.0,66077.0,0.001913]
[1721761747662,1.83849456,66078.0,66077.0,0.001913]
[1721761749048,1.91163456,66078.0,66077.0,0.001913]
[1721761749245,2.21430656,66078.0,66077.0,0.001913]
[1721761749902,1.91163456,66078.0,66077.0,0.001913]
[1721761750306,1.65867191,66078.0,66077.0,0.000913]
[1721761750716,1.66567191,66078.0,66077.0,0.001913]
[1721761751292,1.66267191,66078.0,66077.0,0.001913]
[1721761751490,1.58597191,66078.0,66077.0,0.001913]
[1721761751696,1.73293456,66078.0,66077.0,0.001913]
[1721761752158,1.83293456,66078.0,66077.0,0.001913]
[1721761752322,2.57293456,66078.0,66077.0,0.001913]
[1721761752697,2.82516879,66078.0,66077.0,0.001913]
[1721761753120,2.08516879,66078.0,66077.0,0.001913]
[1721761753471,2.93516879,66078.0,66077.0,0.001913]
[1721761755000,2.79709835,66078.0,66077.0,0.001913]
[1721761757083,1.94709835,66078.0,66077.0,0.001913]
[1721761757280,2.68709835,66078.0,66077.0,0.001913]
[1721761760740,3.06867035,66078.0,66077.0,0.001913]
[1721761761144,3.05867035,66078.0,66077.0,0.001913]
[1721761761349,3.205633,66078.0,66077.0,0.001913]
[1721761763316,2.75599835,66078.0,66077.0,0.001913]
[1721761763517,2.67709835,66078.0,66077.0,0.001913]
[1721761763718,2.52709835,66078.0,66077.0,0.001913]
[1721761764142,2.04582635,66078.0,66077.0,0.001913]
[1721761765576,2.03693414,66078.0,66077.0,0.001913]
[1721761767231,1.73426214,66078.0,66077.0,0.001913]
[1721761767428,2.03693414,66078.0,66077.0,0.001913]
[1721761767845,1.73426214,66078.0,66077.0,0.001913]
[1721761768051,1.73426214,66078.0,66077.0,0.138313]
[1721761768052,0.26323423,66078.0,66077.0,0.138313]
[1721761768256,0.26323423,66078.0,66077.0,0.43833877]
[1721761768459,0.26323423,66078.0,66077.0,0.74101577]
[1721761769529,0.26323423,66078.0,66077.0,0.74001577]
[1721761769530,0.25706423,66078.0,66077.0,0.74001577]
[1721761769744,0.25706423,66078.0,66077.0,1.04269277]
[1721761769948,0.25706423,66078.0,66077.0,1.49238968]
[1721761769949,0.26206423,66078.0,66077.0,1.49238968]
[1721761770181,0.25806423,66078.0,66077.0,1.98355734]
[1721761770374,0.25306423,66078.0,66077.0,2.09579849]
[1721761770548,0.25306423,66078.0,66077.0,2.98427259]
[1721761770549,0.25506423,66078.0,66077.0,2.98427259]
[1721761770752,0.25906423,66078.0,66077.0,2.87100821]
[1721761770965,0.25706423,66078.0,66077.0,2.96159114]
[1721761771138,0.25806423,66078.0,66077.0,2.87800821]
[1721761771337,0.25406423,66078.0,66077.0,2.04724414]
[1721761771551,0.25406423,66078.0,66077.0,2.05497219]
[1721761771931,0.25506423,66078.0,66077.0,1.37777826]
[1721761772104,0.25306423,66078.0,66077.0,1.35677826]
[1721761772847,0.25406423,66078.0,66077.0,1.36077826]
[1721761773300,0.25306423,66078.0,66077.0,1.35677826]
[1721761773505,0.25306423,66078.0,66077.0,1.36569278]
[1721761773706,0.25406423,66078.0,66077.0,1.37069278]
[1721761773907,0.25406423,66078.0,66077.0,1.82033243]